bitfinex/quotes_BTCUSD_20251025
["timestamp","ask_amount","ask_price","bid_price","bid_amount"]
[1761402846475,0.58412292,111560.0,111550.0,0.0004]
[1761402846917,0.58412292,111560.0,111550.0,0.00089174]
[1761402847137,0.5014281,111560.0,111550.0,0.00089174]
[1761402847485,0.20619225,111560.0,111550.0,0.00089174]
[1761402847684,0.47451157,111560.0,111550.0,0.00089174]
[1761402847903,0.17927572,111560.0,111550.0,0.00089174]
[1761402848108,0.49048851,111560.0,111550.0,0.00089174]
[1761402848283,0.49048851,111560.0,111530.0,0.48836412]
[1761402848284,0.17929179,111550.0,111530.0,0.48836412]
[1761402848491,0.17929179,111550.0,111540.0,0.08981901]
[1761402849956,0.17929179,111550.0,111540.0,0.09281901]
[1761402850905,0.17929179,111550.0,111540.0,0.09381901]
[1761402851926,0.17929179,111550.0,111540.0,0.12073233]
[1761402856776,0.17929179,111550.0,111540.0,0.12241855]
[1761402858413,0.17929179,111550.0,111540.0,0.33769855]
[1761402859401,0.44525288,111550.0,111540.0,0.33769855]
[1761402859566,0.17929179,111550.0,111540.0,0.33769855]
[1761402863316,0.17929179,111550.0,111540.0,0.28029855]
[1761402863872,0.17929179,111550.0,111540.0,0.33765855]
[1761402864072,0.17929179,111550.0,111540.0,0.12241855]
[1761402864280,0.17929179,111550.0,111540.0,0.29822933]
[1761402864479,0.17929179,111550.0,111540.0,0.28029855]
[1761402866045,0.17929179,111550.0,111540.0,0.12241855]
[1761402866254,0.17929179,111550.0,111540.0,0.14034933]
[1761402866388,0.17929179,111550.0,111540.0,0.29818933]
[1761402866589,0.17929179,111550.0,111540.0,0.28025855]
[1761402866787,0.17929179,111550.0,111540.0,0.12241855]
[1761402866991,0.17929179,111550.0,111540.0,0.28025855]
[1761402871205,0.17929179,111550.0,111540.0,0.25334523]
[1761402873194,0.17929179,111550.0,111540.0,0.09550523]
[1761402873400,0.17929179,111550.0,111540.0,0.25330523]
[1761402874505,0.17929179,111550.0,111540.0,0.09550523]
[1761402874506,0.44525288,111550.0,111540.0,0.09550523]
[1761402874716,0.17929179,111550.0,111540.0,0.25330523]
[1761402876057,0.17929179,111550.0,111540.0,0.4326131]
[1761402876717,0.45420059,111560.0,111540.0,0.4326131]
[1761402876941,0.45420059,111560.0,111540.0,0.43092688]
[1761402877176,0.17929179,111550.0,111540.0,0.43092688]
[1761402877669,0.17929179,111550.0,111540.0,0.42992688]
[1761402878076,0.17929179,111550.0,111540.0,0.43092688]
[1761402878285,0.17929179,111550.0,111540.0,0.42792688]
[1761402878757,0.17929179,111550.0,111540.0,0.43092688]
[1761402879374,0.17929179,111550.0,111540.0,0.42692688]
[1761402879581,0.17929179,111550.0,111540.0,0.42792688]
[1761402879807,0.1882395,111560.0,111550.0,0.17929179]
[1761402880031,0.1882395,111560.0,111550.0,0.10774818]
[1761402881405,0.45420059,111560.0,111550.0,0.10874818]
[1761402881970,0.45420059,111560.0,111550.0,0.09081901]
[1761402882169,0.45420059,111560.0,111550.0,0.09216786]
[1761402883771,0.18822263,111570.0,111550.0,0.09216786]
[1761402883958,0.18821968,111580.0,111560.0,0.69281582]
[1761402884200,0.18821968,111580.0,111570.0,0.01792596]
[1761402884416,0.18821968,111580.0,111570.0,0.08981901]
[1761402885525,0.19421968,111580.0,111570.0,0.08996656]
[1761402885737,0.18821968,111580.0,111570.0,0.08996656]
[1761402887302,0.18821968,111580.0,111570.0,0.09096656]
[1761402887510,0.45418077,111580.0,111570.0,0.09096656]
[1761402889020,0.53419643,111580.0,111570.0,0.09096656]
[1761402889238,0.45418077,111580.0,111570.0,0.09096656]
[1761402891698,0.45418077,111580.0,111570.0,0.24864656]
[1761402894692,0.45418077,111580.0,111570.0,0.24932087]
[1761402898731,0.45418077,111580.0,111570.0,0.09164087]
[1761402898961,0.45418077,111580.0,111570.0,0.24928087]
[1761402900142,0.53419643,111580.0,111570.0,0.09164087]
[1761402900365,0.53419643,111580.0,111570.0,0.24928087]
[1761402900583,0.53419643,111580.0,111570.0,0.24924087]
[1761402900790,0.45418077,111580.0,111570.0,0.24924087]
[1761402901468,0.18821968,111580.0,111570.0,0.24924087]
[1761402906057,0.18821968,111580.0,111570.0,0.69446161]
[1761402906058,0.17924359,111580.0,111570.0,0.69446161]
[1761402906283,0.18821578,111590.0,111570.0,0.68446161]
[1761402906705,0.18821578,111590.0,111570.0,0.6837873]
[1761402907131,0.18821578,111590.0,111580.0,0.17924359]
[1761402907356,0.18821578,111590.0,111580.0,0.2690626]
[1761402907562,0.18821578,111590.0,111580.0,0.08981901]
[1761402908649,0.19121578,111590.0,111580.0,0.08981901]
[1761402909510,0.19118889,111590.0,111580.0,0.2690626]
[1761402909723,0.19118889,111590.0,111580.0,0.08981901]
[1761402910824,0.19118889,111590.0,111580.0,0.09081901]
[1761402911466,0.18818889,111590.0,111580.0,0.09081901]
[1761402911687,0.18818889,111590.0,111580.0,0.09381901]
[1761402911907,0.18818889,111590.0,111580.0,0.27339972]
[1761402914490,0.17921146,111600.0,111590.0,0.17922752]
[1761402914721,0.17930117,111610.0,111590.0,0.71049037]
[1761402914951,0.17930117,111610.0,111600.0,0.08981901]
[1761402917389,0.44526226,111610.0,111600.0,0.08981901]
[1761402917567,0.44826226,111610.0,111600.0,0.24733901]
[1761402918891,0.18230117,111610.0,111600.0,0.24733901]
[1761402919892,0.18230117,111610.0,111600.0,0.08981901]
[1761402920052,0.47757017,111610.0,111600.0,0.24733901]
[1761402924089,0.47757017,111610.0,111600.0,0.24729901]
[1761402925808,0.18230117,111610.0,111600.0,0.24729901]
[1761402926045,0.47757017,111610.0,111600.0,0.24729901]
[1761402933018,0.18230117,111610.0,111600.0,0.24729901]
[1761402933231,0.47757017,111610.0,111600.0,0.24729901]
[1761402934094,0.47757017,111610.0,111600.0,0.24725901]
[1761402937486,0.17922752,111590.0,111580.0,0.00033712]
[1761402937656,0.17922752,111590.0,111580.0,0.24755613]
[1761402938713,0.17922752,111590.0,111580.0,0.24855613]
[1761402939059,0.17922752,111590.0,111580.0,0.25155613]
[1761402947356,0.17922752,111590.0,111580.0,0.43079972]
[1761402950152,0.17922752,111590.0,111580.0,0.25155613]
[1761402953341,0.17922752,111590.0,111580.0,0.43079972]
[1761402964343,0.17922752,111590.0,111580.0,0.25155613]
[1761402967421,0.17922752,111590.0,111580.0,0.30887613]
[1761402970008,0.17922752,111590.0,111580.0,0.48811972]
[1761402971749,0.17922752,111590.0,111580.0,0.30887613]
[1761402980941,0.17922752,111590.0,111580.0,0.5746475]
[1761402981175,0.17922752,111590.0,111580.0,0.09415613]
[1761402981404,0.17922752,111590.0,111580.0,0.25143613]
[1761402983808,0.44499889,111590.0,111580.0,0.25143613]
[1761402984072,0.17922752,111590.0,111580.0,0.25143613]
[1761402984850,0.44499889,111590.0,111580.0,0.25143613]
[1761402986982,0.17922752,111590.0,111580.0,0.25143613]
[1761402989940,0.44499889,111590.0,111580.0,0.25143613]
[1761402992030,0.17922752,111590.0,111580.0,0.25143613]
[1761403009636,0.17922752,111590.0,111580.0,0.26823167]
[1761403012471,0.17922752,111590.0,111580.0,0.26823305]
[1761403014773,0.17922752,111590.0,111580.0,0.44747664]
[1761403017835,0.17922752,111590.0,111580.0,0.44747767]
[1761403023429,0.17922752,111590.0,111580.0,0.71324904]
[1761403023973,0.17922534,111600.0,111580.0,0.71324904]
[1761403024186,0.17922752,111590.0,111580.0,0.62343003]
[1761403024406,0.17922752,111590.0,111580.0,0.71324904]
[1761403024841,0.17922752,111590.0,111580.0,0.71224904]
[1761403025314,0.17922752,111590.0,111580.0,0.71324904]
[1761403025530,0.17922534,111600.0,111580.0,0.71324904]
[1761403025744,0.17922534,111600.0,111590.0,0.08981901]
[1761403025964,0.17922534,111600.0,111590.0,0.10661696]
[1761403027846,0.21540762,111600.0,111590.0,0.10761696]
[1761403029803,0.48117899,111600.0,111590.0,0.10761696]
[1761403037791,0.21540762,111600.0,111590.0,0.10761696]
[1761403037995,0.48117899,111600.0,111590.0,0.10761696]
[1761403038409,0.74695036,111600.0,111590.0,0.10761696]
[1761403039546,0.74693648,111600.0,111590.0,0.10761696]
[1761403039755,0.7107542,111600.0,111590.0,0.10761696]
[1761403039995,0.74693648,111600.0,111590.0,0.10761696]
[1761403040861,0.51072873,111600.0,111590.0,0.10761696]
[1761403042557,0.51072873,111600.0,111590.0,0.1076159]
[1761403055676,0.17924359,111580.0,111570.0,0.05732]
[1761403055889,0.17924359,111580.0,111570.0,0.30437901]
[1761403057113,0.17924359,111580.0,111570.0,0.30537901]
[1761403057307,0.17924359,111580.0,111570.0,0.31137901]
[1761403058293,0.47456251,111590.0,111570.0,0.31137901]
[1761403058548,0.2154098,111590.0,111580.0,0.08981901]
[1761403059919,0.2154098,111590.0,111580.0,0.09281901]
[1761403061562,0.2154098,111590.0,111580.0,0.09381901]
[1761403063797,0.2154098,111590.0,111580.0,0.11174336]
[1761403063996,0.2154098,111590.0,111580.0,0.09381901]
[1761403067767,0.2154098,111590.0,111580.0,0.11061716]
[1761403069164,0.2154098,111590.0,111580.0,0.11061805]
[1761403070644,0.2154098,111590.0,111580.0,0.09381901]
[1761403070848,0.17922752,111590.0,111580.0,0.11174336]
[1761403071062,0.17922752,111590.0,111580.0,0.09381901]
[1761403071725,0.17922752,111590.0,111580.0,0.11174336]
[1761403078443,0.00138755,111610.0,111590.0,0.17922752]
[1761403078674,0.00138755,111610.0,111600.0,0.66230015]
[1761403078899,0.00138755,111610.0,111600.0,0.82359047]
[1761403079343,0.00138755,111610.0,111600.0,0.85048425]
[1761403079779,0.00138755,111610.0,111600.0,0.85947836]
[1761403081082,0.00138755,111610.0,111600.0,0.86047836]
[1761403081730,0.00138755,111610.0,111600.0,0.86447836]
[1761403086828,0.00138755,111610.0,111600.0,0.83758458]
[1761403088441,0.00138755,111610.0,111600.0,1.14291956]
[1761403088876,0.00138755,111610.0,111600.0,1.16981196]
[1761403090127,0.00138755,111610.0,111600.0,1.15981197]
[1761403090345,0.00138755,111610.0,111600.0,1.16981196]
[1761403091196,0.00138755,111610.0,111600.0,0.87447697]
[1761403091409,0.00138755,111610.0,111600.0,1.16981196]
[1761403095201,0.00027768,111610.0,111600.0,1.16981196]
[1761403095891,0.00027768,111610.0,111600.0,1.15981197]
[1761403096114,0.00027768,111610.0,111600.0,1.16981196]
[1761403098508,0.00027768,111610.0,111600.0,0.87447697]
[1761403099787,0.00027768,111610.0,111600.0,1.16981196]
[1761403100805,0.00027768,111610.0,111600.0,1.14008017]
[1761403109412,0.00027768,111610.0,111600.0,0.87447697]
[1761403109627,0.00027768,111610.0,111600.0,1.14008017]
[1761403112184,0.00027768,111610.0,111600.0,1.11318777]
[1761403112929,0.00027768,111610.0,111600.0,1.45941402]
[1761403113357,0.00027768,111610.0,111600.0,1.47630511]
[1761403113529,0.00027768,111610.0,111600.0,1.4863051]
[1761403113976,0.00027768,111610.0,111600.0,1.4813051]
[1761403114348,0.00027768,111610.0,111600.0,1.4873051]
[1761403115096,0.004,111630.0,111620.0,0.17917935]
[1761403115319,0.004,111630.0,111620.0,0.44407629]
[1761403115480,0.004,111630.0,111620.0,0.42615836]
[1761403116347,0.00449089,111630.0,111620.0,0.42615836]
[1761403116774,0.00749089,111630.0,111620.0,0.42715836]
[1761403117393,0.00749089,111630.0,111620.0,0.69276156]
[1761403117601,0.00749089,111630.0,111620.0,0.42715836]
[1761403118192,0.00749089,111630.0,111620.0,0.69276156]
[1761403118814,0.00749089,111630.0,111620.0,0.42715836]
[1761403120828,0.00816472,111630.0,111620.0,0.42715836]
[1761403121314,0.00816472,111630.0,111620.0,0.48447836]
[1761403123382,0.00816472,111630.0,111620.0,0.75008156]
[1761403141755,0.00816472,111630.0,111620.0,0.48447836]
[1761403141922,0.00816472,111630.0,111620.0,0.75008156]
[1761403144434,0.00816472,111630.0,111620.0,0.48447836]
[1761403148761,0.00816472,111630.0,111620.0,0.75008156]
[1761403151411,0.18732802,111630.0,111620.0,0.48447836]
[1761403151869,0.18732802,111630.0,111620.0,0.30529901]
[1761403152251,0.18732802,111630.0,111620.0,0.24793901]
[1761403152452,0.18732802,111630.0,111620.0,0.09081901]
[1761403152659,0.18732802,111630.0,111620.0,0.30525901]
[1761403154501,0.18732802,111630.0,111620.0,0.09081901]
[1761403154702,0.18732802,111630.0,111620.0,0.30525901]
[1761403160661,0.18732802,111630.0,111620.0,0.09081901]
[1761403160866,0.18732802,111630.0,111620.0,0.30525901]
[1761403169985,0.48241554,111630.0,111620.0,0.24793901]
[1761403190881,0.51859782,111630.0,111620.0,0.24793901]
[1761403191050,0.51859782,111630.0,111620.0,0.09081901]
[1761403191265,0.54549157,111630.0,111620.0,0.09081901]
[1761403192142,0.70261157,111630.0,111620.0,0.09081901]
[1761403196209,0.70087857,111630.0,111620.0,0.09081901]
[1761403206431,0.67398482,111630.0,111620.0,0.09081901]
[1761403210612,0.3788973,111630.0,111620.0,0.09081901]
[1761403210848,0.67398482,111630.0,111620.0,0.09081901]
[1761403222742,0.91025464,111630.0,111620.0,0.09081901]
[1761403235243,1.00007365,111630.0,111620.0,0.001]
[1761403236429,1.00007365,111630.0,111590.0,0.04481964]
[1761403236430,0.17921146,111600.0,111590.0,0.04481964]
[1761403236625,0.17921146,111600.0,111590.0,0.1167159]
[1761403237270,0.44489013,111600.0,111590.0,0.1167159]
[1761403237468,0.17921146,111600.0,111590.0,0.1167159]
[1761403238019,0.44489013,111600.0,111590.0,0.1167159]
[1761403238427,0.44489013,111600.0,111590.0,0.1177159]
[1761403242540,0.17921146,111600.0,111590.0,0.1177159]
[1761403243721,0.17921146,111600.0,111590.0,0.13563865]
[1761403244896,0.17921146,111600.0,111590.0,0.31486617]
[1761403245153,0.17921146,111600.0,111590.0,0.29694342]
[1761403250767,0.17921146,111600.0,111590.0,0.1177159]
[1761403250987,0.17921146,111600.0,111590.0,0.13563865]
[1761403251266,0.17921146,111600.0,111590.0,0.31486617]
[1761403251477,0.17921146,111600.0,111590.0,0.29694342]
[1761403251788,0.17921146,111600.0,111590.0,0.1177159]
[1761403259733,0.17920931,111610.0,111590.0,0.56262209]
[1761403259938,0.17920931,111610.0,111600.0,0.53049882]
[1761403260237,0.17920931,111610.0,111600.0,0.51257768]
[1761403260442,0.17920931,111610.0,111600.0,0.24689901]
[1761403261529,0.17920931,111610.0,111600.0,0.51257768]
[1761403261933,0.18850207,111620.0,111600.0,0.69278914]
[1761403262282,0.18850207,111620.0,111600.0,0.71968289]
[1761403262692,0.18850207,111620.0,111610.0,0.19711495]
[1761403262898,0.18850207,111620.0,111610.0,0.55261263]
[1761403263108,0.18850207,111620.0,111610.0,0.59201309]
[1761403263538,0.18850207,111620.0,111610.0,0.61890511]
[1761403264145,0.18850207,111620.0,111610.0,0.61990511]
[1761403265532,0.17951628,111620.0,111610.0,0.61990511]
[1761403265680,0.17951628,111620.0,111610.0,0.62090511]
[1761403266080,0.00033693,111620.0,111610.0,0.62090511]
[1761403275049,0.00033693,111620.0,111610.0,0.96090511]
[1761403276174,0.00033693,111620.0,111610.0,0.95990511]
[1761403276403,0.00033693,111620.0,111610.0,0.96290511]
[1761403276628,0.00033693,111620.0,111610.0,1.05252815]
[1761403276843,0.00033693,111620.0,111610.0,1.05052815]
[1761403277064,0.00033693,111620.0,111610.0,1.05352815]
[1761403277736,0.00033693,111620.0,111610.0,0.78884948]
[1761403277960,0.00033693,111620.0,111610.0,1.05452815]
[1761403281205,0.00033693,111620.0,111610.0,0.9739051]
[1761403282987,0.00033693,111620.0,111610.0,1.05452815]
[1761403283635,0.00033693,111620.0,111610.0,1.04452816]
[1761403283861,0.00033693,111620.0,111610.0,0.9739051]
[1761403284304,0.00033693,111620.0,111610.0,0.96390511]
[1761403284565,0.00033693,111620.0,111610.0,1.1309451]
[1761403284821,0.00033693,111620.0,111610.0,1.15032709]
[1761403285028,0.00033693,111620.0,111610.0,1.16032708]
[1761403286079,0.00033693,111620.0,111610.0,1.30002709]
[1761403286286,0.00033693,111620.0,111610.0,1.08566709]
[1761403286461,0.00033693,111620.0,111610.0,1.30002709]
[1761403287161,0.00033693,111620.0,111610.0,1.31002708]
[1761403287376,0.00033693,111620.0,111610.0,1.30002709]
[1761403287590,0.00033693,111620.0,111610.0,1.00496644]
[1761403287832,0.00033693,111620.0,111610.0,1.01496643]
[1761403288197,0.00033693,111620.0,111610.0,1.09558948]
[1761403288365,0.00033693,111620.0,111610.0,1.08558949]
[1761403289197,0.00033693,111620.0,111610.0,1.38065014]
[1761403289804,0.00033693,111620.0,111610.0,1.30002709]
[1761403291966,0.00033693,111620.0,111610.0,1.15032709]
[1761403292734,0.00033693,111620.0,111610.0,1.23095014]
[1761403292917,0.00033693,111620.0,111610.0,0.93588949]
[1761403293076,0.00033693,111620.0,111610.0,1.23095014]
[1761403308280,0.00275789,111630.0,111620.0,0.47424]
[1761403308482,0.00275789,111630.0,111620.0,0.56405901]
[1761403308774,0.00275789,111630.0,111620.0,0.60899836]
[1761403308980,0.00275789,111630.0,111620.0,1.0115667]
[1761403310537,0.00275789,111630.0,111620.0,1.0175667]
[1761403311088,0.00275789,111630.0,111620.0,1.0165667]
[1761403311282,0.00275789,111630.0,111620.0,1.0185667]
[1761403312720,0.00275789,111630.0,111620.0,1.1682667]
[1761403313926,0.0030948,111630.0,111620.0,1.1682667]
[1761403321001,0.0030948,111630.0,111620.0,0.87320605]
[1761403321171,0.0030948,111630.0,111620.0,1.1682667]
[1761403324603,0.0030948,111630.0,111620.0,1.3252667]
[1761403324828,0.0030948,111630.0,111620.0,1.3825867]
[1761403326342,0.0030948,111630.0,111620.0,1.1682667]
[1761403326970,0.0030948,111630.0,111620.0,1.3825867]
[1761403329066,0.0030948,111630.0,111620.0,1.1682667]
[1761403329306,0.0030948,111630.0,111620.0,1.3825867]
[1761403333472,0.0030948,111630.0,111620.0,1.1682667]
[1761403333663,0.0030948,111630.0,111620.0,0.87320605]
[1761403333834,0.0030948,111630.0,111620.0,0.849903]
[1761403334042,0.0030948,111630.0,111620.0,1.006903]
[1761403334904,0.0030948,111630.0,111620.0,1.30196365]
[1761403335327,0.1822581,111630.0,111620.0,1.30196365]
[1761403335532,0.1822581,111630.0,111620.0,1.006903]
[1761403336464,0.1822581,111630.0,111620.0,0.857203]
[1761403337212,0.1822581,111630.0,111620.0,0.642883]
[1761403337435,0.1822581,111630.0,111620.0,0.857203]
[1761403341660,0.0030948,111630.0,111620.0,0.857203]
[1761403341875,0.1822581,111630.0,111620.0,0.857203]
[1761403342113,0.0030948,111630.0,111620.0,1.15226365]
[1761403342826,0.1822581,111630.0,111620.0,1.15226365]
[1761403343902,0.0030948,111630.0,111620.0,1.15226365]
[1761403344107,0.1822581,111630.0,111620.0,1.15226365]
[1761403344943,0.1822581,111630.0,111620.0,1.12272193]
[1761403349691,0.1822581,111630.0,111620.0,0.857203]
[1761403349891,0.1822581,111630.0,111620.0,1.12272193]
[1761403350659,0.1822581,111630.0,111620.0,1.12072193]
[1761403351054,0.1822581,111630.0,111620.0,0.94254258]
[1761403351259,0.1822581,111630.0,111620.0,1.12172193]
[1761403351468,0.1822581,111630.0,111620.0,1.11672193]
[1761403359763,0.1822581,111630.0,111620.0,0.851203]
[1761403359990,0.1822581,111630.0,111620.0,1.11672193]
[1761403365412,0.1822581,111630.0,111620.0,0.67202365]
[1761403365611,0.1822581,111630.0,111620.0,0.51502365]
[1761403365820,0.0030948,111630.0,111620.0,0.851203]
[1761403366047,0.1822581,111630.0,111620.0,0.851203]
[1761403366299,0.1822581,111630.0,111620.0,0.93754258]
[1761403366508,0.1822581,111630.0,111620.0,0.67202365]
[1761403370563,0.1822581,111630.0,111620.0,0.93754258]
[1761403376923,0.1822581,111630.0,111620.0,0.33202365]
[1761403377197,0.1822581,111630.0,111620.0,0.11770365]
[1761403377387,0.1822581,111630.0,111620.0,0.33202365]
[1761403378817,0.44777703,111630.0,111620.0,0.33202365]
[1761403379588,0.44777703,111630.0,111620.0,0.30513901]
[1761403379972,0.44777703,111630.0,111620.0,0.30413901]
[1761403380369,0.45077703,111630.0,111620.0,0.30513901]
[1761403382895,0.48695931,111630.0,111620.0,0.09081901]
[1761403383074,0.48695931,111630.0,111620.0,0.24781901]
[1761403386750,0.48695931,111630.0,111620.0,0.27471156]
[1761403387419,0.48695931,111630.0,111620.0,0.24781901]
[1761403390653,0.22144038,111630.0,111620.0,0.24781901]
[1761403398670,0.48695931,111630.0,111620.0,0.24781901]
[1761403400088,0.22144038,111630.0,111620.0,0.24781901]
[1761403400368,0.48695931,111630.0,111620.0,0.24781901]
[1761403402732,0.22144038,111630.0,111620.0,0.24781901]
[1761403406804,0.1852581,111630.0,111620.0,0.42699836]
[1761403407015,0.1852581,111630.0,111620.0,0.24781901]
[1761403407215,0.1852581,111630.0,111620.0,0.42699836]
[1761403407411,0.1852581,111630.0,111620.0,0.4538876]
[1761403409046,0.0060948,111630.0,111620.0,0.4538876]
[1761403409270,0.1852581,111630.0,111620.0,0.4538876]
[1761403409599,0.1852581,111630.0,111620.0,0.74897885]
[1761403409805,0.0060948,111630.0,111620.0,0.74897885]
[1761403411462,0.0060948,111630.0,111620.0,0.74797885]
[1761403411787,0.0060948,111630.0,111620.0,0.74997885]
[1761403412864,0.0030948,111630.0,111620.0,0.74997885]
[1761403413098,0.0030948,111630.0,111620.0,0.75197885]
[1761403423359,0.0030948,111630.0,111620.0,1.09197885]
[1761403425700,0.0030948,111630.0,111620.0,1.1726019]
[1761403428354,0.0030948,111630.0,111620.0,1.09197885]
[1761403432427,0.0030948,111630.0,111620.0,1.1726019]
[1761403448963,0.0030948,111630.0,111620.0,0.72051065]
[1761403449124,0.0030948,111630.0,111620.0,1.2298819]
[1761403463377,0.0030948,111630.0,111620.0,0.93479065]
[1761403463634,0.0030948,111630.0,111620.0,1.2298819]
[1761403468810,0.0030948,111630.0,111620.0,1.20030925]
[1761403472707,0.0030948,111630.0,111620.0,1.35000925]
[1761403474303,0.0030948,111630.0,111620.0,1.08449065]
[1761403474509,0.0030948,111630.0,111620.0,1.35000925]
[1761403479083,0.0030948,111630.0,111620.0,1.08449065]
[1761403479327,0.0030948,111630.0,111620.0,1.35000925]
[1761403481989,0.0030948,111630.0,111620.0,1.20030925]
[1761403485527,0.1822581,111630.0,111620.0,1.20030925]
[1761403485704,0.0030948,111630.0,111620.0,1.20030925]
[1761403489899,0.1822581,111630.0,111620.0,1.20030925]
[1761403492006,0.1822581,111630.0,111620.0,1.1196462]
[1761403494002,0.18035011,111630.0,111620.0,1.1196462]
[1761403494420,0.18035011,111630.0,111620.0,1.20026925]
[1761403494840,0.18035011,111630.0,111620.0,1.1196462]
[1761403498694,0.18035011,111630.0,111620.0,0.8541276]
[1761403498873,0.18035011,111630.0,111620.0,1.1196462]
[1761403503624,0.00118681,111630.0,111620.0,1.1196462]
[1761403504286,0.18035011,111630.0,111620.0,1.1196462]
[1761403504678,0.18035011,111630.0,111620.0,0.8541276]
[1761403504889,0.18035011,111630.0,111620.0,1.1196462]
[1761403509670,0.44586871,111630.0,111620.0,0.09381901]
[1761403509878,0.44586871,111630.0,111620.0,0.25077901]
[1761403510091,0.18035011,111630.0,111620.0,0.25077901]
[1761403510329,0.44586871,111630.0,111620.0,0.25077901]
[1761403510756,0.44586871,111630.0,111620.0,0.24877901]
[1761403510967,0.44586871,111630.0,111620.0,0.24677901]
[1761403510968,0.18035011,111630.0,111620.0,0.24677901]
[1761403511168,0.45186871,111630.0,111620.0,0.24677901]
[1761403512194,0.18635011,111630.0,111620.0,0.24677901]
[1761403512419,0.45186871,111630.0,111620.0,0.24677901]
[1761403515215,0.18635011,111630.0,111620.0,0.24677901]
[1761403522211,0.45186871,111630.0,111620.0,0.24677901]
[1761403528872,0.18635011,111630.0,111620.0,0.24677901]
[1761403530399,0.18635011,111630.0,111620.0,0.08981901]
[1761403534129,0.48149273,111630.0,111620.0,0.08981901]
[1761403535078,0.18635011,111630.0,111620.0,0.08981901]
[1761403539519,0.48149273,111630.0,111620.0,0.08981901]
[1761403540340,0.18635011,111630.0,111620.0,0.08981901]
[1761403550245,0.51767501,111630.0,111620.0,0.08981901]
[1761403550572,0.22253239,111630.0,111620.0,0.08981901]
[1761403565055,0.18635011,111630.0,111620.0,0.08981901]
[1761403590364,0.18635011,111630.0,111620.0,0.35541829]
[1761403592111,0.18635011,111630.0,111620.0,0.08981901]
[1761403594781,0.18635011,111630.0,111620.0,0.11671038]
[1761403596518,0.45194939,111630.0,111620.0,0.11671038]
[1761403596724,0.45194939,111630.0,111620.0,0.27371038]
[1761403598557,0.45194939,111630.0,111620.0,0.08981901]
[1761403599588,0.18635011,111630.0,111620.0,0.08981901]
[1761403599732,0.45194939,111630.0,111620.0,0.08981901]
[1761403600999,0.18635011,111630.0,111620.0,0.08981901]
[1761403601145,0.45194939,111630.0,111620.0,0.08981901]
[1761403601714,0.18635011,111630.0,111620.0,0.08981901]
[1761403607283,0.45194939,111630.0,111620.0,0.08981901]
[1761403607858,0.94030756,111630.0,111620.0,0.08981901]
[1761403608059,0.17917935,111620.0,111610.0,0.24121356]
[1761403608245,0.46075557,111620.0,111610.0,0.33103257]
[1761403608400,0.44477863,111620.0,111610.0,0.33103257]
[1761403608816,0.44477863,111620.0,111610.0,0.27371257]
[1761403609020,0.17917935,111620.0,111610.0,0.27371257]
[1761403609192,0.19515629,111620.0,111610.0,0.27471257]
[1761403609399,0.46075557,111620.0,111610.0,0.11771257]
[1761403609752,0.5278747,111620.0,111610.0,0.09081901]
[1761403609966,0.44477863,111620.0,111610.0,0.09081901]
[1761403610563,0.44777863,111620.0,111610.0,0.09081901]
[1761403610906,0.44477863,111620.0,111610.0,0.08981901]
[1761403611048,0.45077863,111620.0,111610.0,0.08981901]
[1761403620254,0.17919541,111610.0,111600.0,0.02689616]
[1761403620470,0.19517235,111610.0,111600.0,0.11671517]
[1761403621121,0.46077163,111610.0,111600.0,0.11671517]
[1761403621335,0.17919541,111610.0,111600.0,0.11671517]
[1761403621530,0.19517235,111610.0,111600.0,0.11771517]
[1761403621746,0.19517235,111610.0,111600.0,0.11871517]
[1761403623318,0.17919541,111610.0,111600.0,0.11871517]
[1761403624630,0.19517235,111610.0,111600.0,0.11871517]
[1761403625470,0.17919541,111610.0,111600.0,0.11871517]
[1761403631569,0.17919541,111610.0,111600.0,0.38431445]
[1761403632427,0.17919541,111610.0,111600.0,0.11871517]
[1761403632628,0.17919541,111610.0,111600.0,0.38431445]
[1761403634303,0.17919541,111610.0,111600.0,0.11871517]
[1761403634504,0.17919541,111610.0,111600.0,0.38431445]
[1761403640366,0.17919541,111610.0,111600.0,0.11871517]
[1761403640583,0.17919541,111610.0,111600.0,0.38431445]
[1761403644807,0.17919541,111610.0,111600.0,0.11871517]
[1761403663193,0.17919541,111610.0,111600.0,0.43183714]
[1761403663373,0.17919541,111610.0,111600.0,0.11871517]
[1761403666618,0.17919541,111610.0,111600.0,0.413916]
[1761403667047,0.17919541,111610.0,111600.0,0.11871517]
[1761403669392,0.19517235,111610.0,111600.0,0.11871517]
[1761403670798,0.17919541,111610.0,111600.0,0.27567517]
[1761403671334,0.17919541,111610.0,111600.0,0.11871517]
[1761403671533,0.17919541,111610.0,111600.0,0.27567517]
[1761403672803,0.17919541,111610.0,111600.0,0.11871517]
[1761403672982,0.17919541,111610.0,111600.0,0.27567517]
[1761403674139,0.17919541,111610.0,111600.0,0.11871517]
[1761403674562,0.17919541,111610.0,111600.0,0.27567517]
[1761403675093,0.17919541,111610.0,111600.0,0.11871517]
[1761403675303,0.17919541,111610.0,111600.0,0.27567517]
[1761403683964,0.19517235,111610.0,111600.0,0.27567517]
[1761403684238,0.17919541,111610.0,111600.0,0.27567517]
[1761403688532,0.17919541,111610.0,111600.0,0.570876]
[1761403688862,0.17919541,111610.0,111600.0,0.27967517]
[1761403710861,0.17919541,111610.0,111600.0,0.54532506]
[1761403712427,0.17919541,111610.0,111600.0,0.81097495]
[1761403712847,0.17919541,111610.0,111600.0,0.99018641]
[1761403713606,0.17917935,111620.0,111610.0,0.17919541]
[1761403713768,0.17917935,111620.0,111610.0,0.37338844]
[1761403713976,0.17917935,111620.0,111610.0,0.3554689]
[1761403714497,0.17917935,111620.0,111610.0,0.5615557]
[1761403715604,0.18017935,111620.0,111610.0,0.5615557]
[1761403717803,0.17917935,111620.0,111610.0,0.5615557]
[1761403717984,0.17917935,111620.0,111610.0,0.5665557]
[1761403718654,0.17917935,111620.0,111610.0,0.1217104]
[1761403718832,0.17917935,111620.0,111610.0,0.38736029]
[1761403719808,0.17917935,111620.0,111610.0,0.5665557]
[1761403724920,0.17917935,111620.0,111610.0,0.6238757]
[1761403730252,0.17917935,111620.0,111610.0,0.44468029]
[1761403730860,0.19515629,111620.0,111610.0,0.1790304]
[1761403731070,0.19515629,111620.0,111610.0,0.44468029]
[1761403732395,0.17917935,111620.0,111610.0,0.44468029]
[1761403734706,0.17917935,111620.0,111610.0,0.1790304]
[1761403734905,0.19515629,111620.0,111610.0,0.44468029]
[1761403735107,0.17917935,111620.0,111610.0,0.44468029]
[1761403737202,0.17917935,111620.0,111610.0,0.6238757]
[1761403740592,0.17917935,111620.0,111610.0,0.6278757]
[1761403743191,0.17917935,111620.0,111610.0,0.44868029]
[1761403744670,0.17917935,111620.0,111610.0,0.6278757]
[1761403749597,0.17917935,111620.0,111610.0,0.36222581]
[1761403749810,0.17917935,111620.0,111610.0,0.6278757]
[1761403752411,0.17917935,111620.0,111610.0,0.36222581]
[1761403752569,0.17917935,111620.0,111610.0,0.6278757]
[1761403753779,0.17917935,111620.0,111610.0,0.44868029]
[1761403758174,0.17917935,111620.0,111610.0,0.6278757]
[1761403770821,0.17917935,111620.0,111610.0,0.65730935]
[1761403773613,0.17917935,111620.0,111610.0,0.36222581]